bitfinex/quotes_BTCUSD_20220731
["timestamp","ask_amount","ask_price","bid_price","bid_amount"]
[1659262200791,0.00276172,23733.0,23732.0,0.15492919]
[1659262202012,0.00276172,23733.0,23732.0,0.07692919]
[1659262202457,0.00276172,23733.0,23732.0,0.15492919]
[1659262203828,0.00276172,23733.0,23732.0,0.07692919]
[1659262204978,0.00276172,23733.0,23732.0,0.12692919]
[1659262205214,0.00276172,23733.0,23732.0,0.07692919]
[1659262205448,0.00276172,23733.0,23732.0,0.12692919]
[1659262205667,0.00276172,23733.0,23732.0,0.07692919]
[1659262206253,0.00276172,23733.0,23732.0,0.15492919]
[1659262207288,0.00276172,23733.0,23732.0,0.20492919]
[1659262207668,0.00276172,23733.0,23732.0,0.12692919]
[1659262208346,0.00276172,23733.0,23732.0,0.07692919]
[1659262209913,0.00276172,23733.0,23732.0,0.15492919]
[1659262210375,0.08276172,23733.0,23732.0,0.15492919]
[1659262210986,0.00276172,23733.0,23732.0,0.07692919]
[1659262212370,0.00276172,23733.0,23732.0,0.15492919]
[1659262213764,0.00276172,23733.0,23732.0,0.07692919]
[1659262213989,0.00276172,23733.0,23732.0,0.15492919]
[1659262214216,0.00276172,23733.0,23732.0,0.20492919]
[1659262215347,0.00276172,23733.0,23732.0,0.12692919]
[1659262215844,0.00276172,23733.0,23732.0,0.15492919]
[1659262216050,0.00276172,23733.0,23732.0,0.20492919]
[1659262217234,0.00276172,23733.0,23732.0,0.12692919]
[1659262217876,0.00276172,23733.0,23732.0,0.20492919]
[1659262219079,0.00276172,23733.0,23732.0,0.12692919]
[1659262219926,0.00276172,23733.0,23732.0,0.20492919]
[1659262221201,0.00276172,23733.0,23732.0,0.12692919]
[1659262221811,0.02576172,23733.0,23732.0,0.20092919]
[1659262222883,0.02576172,23733.0,23732.0,0.15092919]
[1659262223143,0.02576172,23733.0,23732.0,0.12692919]
[1659262223144,0.00276172,23733.0,23732.0,0.12692919]
[1659262223998,0.00276172,23733.0,23732.0,0.20492919]
[1659262224220,0.00266099,23733.0,23732.0,0.20492919]
[1659262225118,0.00266099,23733.0,23732.0,0.12692919]
[1659262226032,0.00266099,23733.0,23732.0,0.15492919]
[1659262226723,0.00266099,23733.0,23732.0,0.078]
[1659262226939,0.04413634,23733.0,23732.0,0.078]
[1659262227609,0.04413634,23733.0,23731.0,0.00276921]
[1659262228038,0.09113634,23733.0,23731.0,0.00276921]
[1659262229130,0.04413634,23733.0,23731.0,0.00276921]
[1659262230019,0.09113634,23733.0,23731.0,0.00276921]
[1659262230461,0.04966099,23733.0,23731.0,0.00288047]
[1659262231193,0.00266099,23733.0,23731.0,0.00288047]
[1659262231915,0.04966099,23733.0,23731.0,0.00276921]
[1659262232134,0.04966099,23733.0,23731.0,0.00288047]
[1659262233730,0.00266099,23733.0,23731.0,0.00288047]
[1659262233950,0.00266099,23733.0,23731.0,0.07988047]
[1659262233951,0.03066099,23733.0,23731.0,0.07988047]
[1659262235276,0.00266099,23733.0,23732.0,0.00023163]
[1659262235923,0.03066099,23733.0,23732.0,0.07723163]
[1659262237089,0.00266099,23733.0,23732.0,0.00023163]
[1659262237348,0.00266099,23733.0,23731.0,0.00288047]
[1659262237801,0.00266099,23733.0,23732.0,0.00023163]
[1659262238038,0.04966099,23733.0,23732.0,0.00023163]
[1659262239068,0.00266099,23733.0,23731.0,0.00288047]
[1659262239267,0.00266099,23733.0,23732.0,0.00023163]
[1659262239727,0.00266099,23733.0,23731.0,0.00288047]
[1659262239903,0.00666099,23733.0,23732.0,0.053]
[1659262240332,0.52848509,23735.0,23732.0,0.053]
[1659262240333,0.28966509,23735.0,23734.0,0.07692919]
[1659262240570,0.0022,23743.0,23742.0,0.07692919]
[1659262240783,0.0022,23743.0,23742.0,0.37388569]
[1659262241273,0.0022,23743.0,23742.0,0.37411723]
[1659262241513,0.0022,23743.0,23742.0,0.37422849]
[1659262241743,0.0022,23743.0,23742.0,0.07388569]
[1659262241968,0.0022,23743.0,23742.0,0.08988569]
[1659262242421,0.0022,23743.0,23742.0,0.0926638]
[1659262242644,0.0022,23743.0,23742.0,0.09277506]
[1659262243058,0.0022,23743.0,23742.0,0.07677506]
[1659262243729,0.0022,23743.0,23742.0,0.08877506]
[1659262245106,0.00350281,23743.0,23742.0,0.07677506]
[1659262245788,0.00350281,23743.0,23742.0,0.08877506]
[1659262247311,0.00350281,23743.0,23742.0,0.07677506]
[1659262247989,0.00350281,23743.0,23742.0,0.08877506]
[1659262249127,0.00350281,23743.0,23742.0,0.07677506]
[1659262249656,0.66800858,23743.0,23742.0,0.00288937]
[1659262249901,0.66800858,23743.0,23742.0,0.01488937]
[1659262250850,0.66800858,23743.0,23742.0,0.01465783]
[1659262251263,0.66800858,23743.0,23742.0,0.00265783]
[1659262251944,0.66800858,23743.0,23742.0,0.01465783]
[1659262252906,0.79753393,23743.0,23742.0,0.01454657]
[1659262253128,0.75605858,23743.0,23742.0,0.01454657]
[1659262253315,0.75605858,23743.0,23742.0,0.00254657]
[1659262253530,0.66800858,23743.0,23742.0,0.00254657]
[1659262253961,0.66800858,23743.0,23742.0,0.01454657]
[1659262254211,0.66800858,23743.0,23742.0,0.01465783]
[1659262255096,0.66765964,23743.0,23742.0,0.01465783]
[1659262255304,0.66765964,23743.0,23742.0,0.00265783]
[1659262255530,0.66800299,23743.0,23742.0,0.00265783]
[1659262256056,0.66800299,23743.0,23742.0,0.02876596]
[1659262257229,0.66800299,23743.0,23742.0,0.00376596]
[1659262257439,0.66800299,23743.0,23742.0,0.00254657]
[1659262257668,0.66800299,23743.0,23742.0,0.00441267]
[1659262257894,0.66800299,23743.0,23742.0,0.00254657]
[1659262258351,0.66800299,23743.0,23742.0,0.02754657]
[1659262258582,0.75605299,23743.0,23742.0,0.02754657]
[1659262258804,0.84347834,23743.0,23742.0,0.02754657]
[1659262259035,1.14734234,23743.0,23742.0,0.02754657]
[1659262259956,1.14734234,23743.0,23742.0,0.05454657]
[1659262260435,1.14734234,23743.0,23742.0,0.00254657]
[1659262260714,1.10586699,23743.0,23742.0,0.00254657]
[1659262260902,1.51312432,23743.0,23742.0,0.00254657]
[1659262261515,1.55459967,23743.0,23742.0,0.00254657]
[1659262264047,1.47059967,23743.0,23742.0,0.00254657]
[1659262264303,1.55864967,23743.0,23742.0,0.00254657]
[1659262265181,1.51717432,23743.0,23742.0,0.00254657]
[1659262266852,1.02186699,23743.0,23742.0,0.00254657]
[1659262268589,1.06334234,23743.0,23742.0,0.00254657]
[1659262269823,1.15139234,23743.0,23742.0,0.00254657]
[1659262270430,1.60459967,23743.0,23742.0,0.00254657]
[1659262272827,1.56312432,23743.0,23742.0,0.00254657]
[1659262276371,1.60459967,23743.0,23742.0,0.00254657]
[1659262277347,1.60459967,23743.0,23742.0,0.00245382]
[1659262278999,1.56312432,23743.0,23742.0,0.00245382]
[1659262279219,1.51717432,23743.0,23742.0,0.00245382]
[1659262280088,1.51717432,23743.0,23742.0,0.0022829]
[1659262280307,1.55864967,23743.0,23742.0,0.0022829]
[1659262290107,1.50864967,23743.0,23742.0,0.0022829]
[1659262292848,1.55864967,23743.0,23742.0,0.0022829]
[1659262295945,0.05,23741.0,23732.0,0.0316]
[1659262296191,0.05,23738.0,23731.0,0.3903]
[1659262296418,0.05,23738.0,23729.0,0.71925363]
[1659262296419,1.01112133,23737.0,23729.0,0.09735363]
[1659262296662,0.54150033,23736.0,23729.0,0.50461096]
[1659262296888,0.40725733,23736.0,23729.0,0.50461096]
[1659262297125,0.303864,23735.0,23730.0,0.48398981]
[1659262297364,0.45925733,23736.0,23730.0,0.48398981]
[1659262297631,0.71112133,23735.0,23730.0,0.48398981]
[1659262297855,0.71112133,23734.0,23730.0,0.48398981]
[1659262298072,0.40725733,23734.0,23730.0,0.48398981]
[1659262298527,0.05,23732.0,23730.0,0.48398981]
[1659262298763,0.95725733,23731.0,23730.0,0.48398981]
[1659262299015,1.21112133,23731.0,23730.0,0.48398981]
[1659262299235,1.21803477,23731.0,23730.0,0.48398981]
[1659262299456,0.96573268,23731.0,23730.0,0.55798981]
[1659262299678,0.46573268,23731.0,23730.0,0.55798981]
[1659262300155,0.42425733,23731.0,23730.0,0.55985591]
[1659262300369,0.017,23731.0,23730.0,0.55798981]
[1659262300618,0.017,23731.0,23730.0,0.85798981]
[1659262300830,0.017,23731.0,23730.0,2.11695772]
[1659262301051,0.017,23731.0,23730.0,2.00618034]
[1659262301284,0.00123965,23734.0,23730.0,1.64171991]
[1659262301511,0.032,23731.0,23730.0,1.41485591]
[1659262301728,0.032,23731.0,23730.0,1.42749939]
[1659262302918,0.00123965,23734.0,23730.0,1.35049939]
[1659262303141,0.00123965,23734.0,23731.0,0.3]
[1659262303365,0.00123965,23734.0,23733.0,0.07388569]
[1659262304083,0.303864,23737.0,23733.0,0.07388569]
[1659262304323,0.54150033,23736.0,23733.0,0.17121935]
[1659262304534,0.303864,23735.0,23733.0,0.17121935]
[1659262304768,0.134243,23734.0,23733.0,0.17121935]
[1659262304979,0.134243,23734.0,23733.0,0.09733366]
[1659262305434,0.173243,23734.0,23733.0,0.09733366]
[1659262305650,0.342864,23734.0,23733.0,0.09733366]
[1659262305863,0.039,23734.0,23733.0,0.17121935]
[1659262306087,0.039,23734.0,23733.0,0.47121935]
[1659262306314,0.039,23734.0,23733.0,0.17121935]
[1659262306544,0.039,23734.0,23733.0,0.1724116]
[1659262306788,0.3,23738.0,23733.0,0.1724116]
[1659262306789,0.303864,23737.0,23733.0,0.47121935]
[1659262307007,0.134243,23736.0,23733.0,0.47121935]
[1659262307229,0.3,23738.0,23733.0,0.47121935]
[1659262307444,0.347864,23737.0,23733.0,0.47121935]
[1659262307661,0.134243,23736.0,23734.0,0.0018661]
[1659262307938,0.17571835,23736.0,23734.0,0.00011126]
[1659262308158,0.04147535,23736.0,23733.0,0.47121935]
[1659262308384,0.303864,23736.0,23733.0,0.47121935]
[1659262308593,0.134243,23735.0,23733.0,0.47121935]
[1659262308826,0.00123965,23737.0,23733.0,0.47121935]
[1659262309070,0.34533935,23736.0,23733.0,0.17121935]
[1659262309481,0.053,23735.0,23733.0,0.09733366]
[1659262309922,0.187243,23735.0,23733.0,0.09733366]
[1659262310138,0.053,23735.0,23733.0,0.09733366]
[1659262310358,0.05423965,23735.0,23733.0,0.09733366]
[1659262310839,0.05423965,23735.0,23733.0,0.09919976]
[1659262312463,0.0554793,23735.0,23733.0,0.39919976]
[1659262312912,0.0554793,23735.0,23733.0,0.09919976]
[1659262314766,0.1084793,23735.0,23733.0,0.09919976]
[1659262314995,0.1084793,23735.0,23733.0,0.09744492]
[1659262315220,0.1084793,23735.0,23733.0,0.09733366]
[1659262315921,0.1204793,23735.0,23733.0,0.16444492]
[1659262316136,0.0024793,23735.0,23733.0,0.09744492]
[1659262318646,0.0024793,23735.0,23733.0,0.09919976]
[1659262319083,0.04395465,23735.0,23733.0,0.09733366]
[1659262319302,0.0024793,23735.0,23733.0,0.09744492]
[1659262320278,0.01439908,23735.0,23733.0,0.16444492]
[1659262320520,0.05587443,23735.0,23733.0,0.16444492]
[1659262320740,0.01439908,23735.0,23733.0,0.16619976]
[1659262320955,0.02639908,23735.0,23733.0,0.23319976]
[1659262321844,0.03331252,23735.0,23733.0,0.23319976]
[1659262322072,0.00239908,23735.0,23733.0,0.09919976]
[1659262323158,0.04387443,23735.0,23733.0,0.09733366]
[1659262323503,0.00239908,23735.0,23733.0,0.09919976]
[1659262323729,0.00239908,23735.0,23733.0,0.09744492]
[1659262323932,0.00239908,23735.0,23733.0,0.09733366]
[1659262324162,0.34533935,23734.0,23733.0,0.09733366]
[1659262324384,0.134243,23734.0,23733.0,0.09733366]
[1659262324607,0.00239908,23735.0,23733.0,0.09733366]
[1659262325047,0.073,23734.0,23733.0,0.09733366]
[1659262325258,0.073,23734.0,23733.0,0.10997714]
[1659262325497,0.073,23734.0,23733.0,0.11184324]
[1659262326670,0.00239908,23735.0,23733.0,0.11184324]
[1659262326880,0.016,23734.0,23733.0,0.18384324]
[1659262328226,0.00239908,23735.0,23733.0,0.11184324]
[1659262328459,0.00239908,23735.0,23734.0,0.07388569]
[1659262328681,0.00239908,23735.0,23733.0,0.11184324]
[1659262328896,0.01439908,23735.0,23734.0,0.07388569]
[1659262329100,0.01439908,23735.0,23733.0,0.17884324]
[1659262329550,0.01439908,23735.0,23734.0,0.07388569]
[1659262330269,0.00239908,23735.0,23734.0,0.07388569]
[1659262330948,0.02639908,23735.0,23734.0,0.14788569]
[1659262331876,0.02639908,23735.0,23734.0,0.074]
[1659262332325,0.00239908,23735.0,23733.0,0.09919976]
[1659262332993,0.02339908,23735.0,23734.0,0.074]
[1659262333708,0.02339908,23735.0,23734.0,0.07388098]
[1659262334167,0.00239908,23735.0,23733.0,0.09919976]
[1659262335300,0.02639908,23735.0,23733.0,0.17319976]
[1659262336645,0.00226438,23735.0,23733.0,0.09919976]
[1659262340222,0.02326438,23735.0,23733.0,0.17319976]
[1659262341234,0.04526438,23735.0,23733.0,0.24619976]
[1659262341450,0.04526438,23735.0,23733.0,0.24335238]
[1659262341685,0.00226438,23735.0,23733.0,0.09635238]
[1659262343356,0.02226438,23735.0,23733.0,0.17035238]
[1659262344517,0.00226438,23735.0,23733.0,0.09635238]
[1659262344933,0.04373973,23735.0,23733.0,0.09448628]
[1659262345157,0.00226438,23735.0,23733.0,0.09635238]
[1659262345374,0.03226438,23735.0,23733.0,0.17135238]
[1659262346737,0.02426438,23735.0,23733.0,0.16935238]
[1659262348033,0.02426438,23735.0,23733.0,0.09635238]
[1659262348242,0.00226438,23735.0,23733.0,0.09635238]
[1659262348469,0.02726438,23735.0,23733.0,0.17035238]
[1659262349665,0.02726438,23735.0,23733.0,0.09635238]
[1659262349884,0.00226438,23735.0,23733.0,0.09635238]
[1659262350600,0.01826438,23735.0,23733.0,0.16735238]
[1659262351802,0.00226438,23735.0,23733.0,0.09635238]
[1659262353318,0.01826438,23735.0,23733.0,0.16735238]
[1659262354476,0.01826438,23735.0,23734.0,0.3]
[1659262354712,0.40725733,23738.0,23735.0,0.35]
[1659262354954,0.66670577,23743.0,23737.0,0.07388569]
[1659262355196,0.71112133,23742.0,23738.0,0.3]
[1659262355440,0.71112133,23742.0,23738.0,1.020994]
[1659262355441,0.40725733,23742.0,23738.0,1.020994]
[1659262356142,0.40725733,23742.0,23739.0,0.00011126]
[1659262356363,0.40725733,23742.0,23739.0,0.30011126]
[1659262356598,0.47625733,23742.0,23739.0,0.51061026]
[1659262357477,0.0702012,23742.0,23739.0,0.56061026]
[1659262357698,0.0012012,23742.0,23739.0,0.51061026]
[1659262358392,0.0792012,23742.0,23739.0,0.56061026]
[1659262358853,0.0792012,23742.0,23739.0,0.61061026]
[1659262359087,0.0792012,23742.0,23739.0,0.56061026]
[1659262359774,0.0012012,23742.0,23739.0,0.61061026]
[1659262359917,0.0012012,23742.0,23739.0,0.56061026]
[1659262360165,0.0012012,23742.0,23741.0,0.12388569]
[1659262360363,0.0152012,23742.0,23741.0,0.12388569]
[1659262360722,0.0152012,23742.0,23741.0,0.59736849]
[1659262360952,0.0152012,23742.0,23741.0,0.89736849]
[1659262361961,0.0012012,23742.0,23741.0,1.55123249]
[1659262362404,0.0012012,23742.0,23741.0,1.58723249]
[1659262362619,0.66670577,23743.0,23741.0,1.74247249]
[1659262362857,0.66670577,23743.0,23742.0,0.42786095]
[1659262363076,0.66670577,23743.0,23742.0,0.37399695]
[1659262363286,0.66670577,23743.0,23742.0,0.67786095]
[1659262363520,0.66670577,23743.0,23742.0,0.37399695]
[1659262364404,0.74170577,23743.0,23742.0,0.39499695]
[1659262365441,0.74170577,23743.0,23742.0,0.69886095]
[1659262365698,0.66670577,23743.0,23742.0,0.37399695]
[1659262366138,0.66670577,23743.0,23742.0,0.37389959]
[1659262366361,0.66670577,23743.0,23742.0,0.41489959]
[1659262367470,0.66670577,23743.0,23742.0,0.41478833]
[1659262367695,0.66670577,23743.0,23742.0,0.37378833]
[1659262368356,0.66670577,23743.0,23742.0,0.42678833]
[1659262368796,0.66670577,23743.0,23742.0,0.83404566]
[1659262369731,0.66670577,23743.0,23742.0,0.78104566]
[1659262369961,0.66670577,23743.0,23742.0,0.7828005]
[1659262370175,0.66670577,23743.0,23742.0,0.8828005]
[1659262370389,0.66670577,23743.0,23742.0,1.2146645]
[1659262370599,0.66670577,23743.0,23742.0,1.1646645]
[1659262370807,0.66670577,23743.0,23742.0,0.8608005]
[1659262371263,0.66670577,23743.0,23742.0,0.8606065]
[1659262371711,0.66670577,23743.0,23742.0,0.7826065]
[1659262372353,0.66670577,23743.0,23742.0,0.8606065]
[1659262373726,0.66670577,23743.0,23742.0,0.7826065]
[1659262374371,0.66670577,23743.0,23742.0,0.8606065]
[1659262374575,0.66670577,23743.0,23742.0,0.9606065]
[1659262375775,0.66670577,23743.0,23742.0,0.8826065]
[1659262376213,0.66670577,23743.0,23742.0,1.2180905]
[1659262376414,0.66670577,23743.0,23742.0,1.1864705]
[1659262376415,0.58123395,23743.0,23742.0,1.1864705]
[1659262376629,0.58123395,23743.0,23742.0,1.14676402]
[1659262377050,0.58123395,23743.0,23742.0,1.09676402]
[1659262377497,0.58123395,23743.0,23742.0,1.04676402]
[1659262377714,0.50223395,23743.0,23742.0,1.04676402]
[1659262377939,0.50348723,23743.0,23742.0,1.04676402]
[1659262378386,0.50348723,23743.0,23742.0,1.08376402]
[1659262378610,0.50348723,23743.0,23742.0,0.67650669]
[1659262378823,0.50348723,23743.0,23742.0,0.37264269]
[1659262379476,0.50348723,23743.0,23742.0,0.67650669]
[1659262379716,0.50348723,23743.0,23742.0,0.33564269]
[1659262380346,0.50348723,23743.0,23742.0,0.67650669]
[1659262380555,0.50348723,23743.0,23742.0,0.37264269]
[1659262381690,0.50348723,23743.0,23742.0,0.63950669]
[1659262381904,0.50348723,23743.0,23742.0,0.33564269]
[1659262382103,0.50348723,23743.0,23742.0,0.64204812]
[1659262382767,0.50348723,23743.0,23742.0,0.33818412]
[1659262382991,0.50348723,23743.0,23742.0,0.33642928]
[1659262384078,0.49848723,23743.0,23742.0,0.33642928]
[1659262384302,0.49848723,23743.0,23742.0,0.33658638]
[1659262385171,0.49848723,23743.0,23742.0,0.30269853]
[1659262386472,0.49848723,23743.0,23742.0,0.30254143]
[1659262386915,0.49848723,23743.0,23742.0,0.33954143]
[1659262387621,0.49848723,23743.0,23742.0,0.34129627]
[1659262388044,0.49848723,23743.0,23742.0,0.30429627]
[1659262388768,0.57748723,23743.0,23742.0,0.30429627]
[1659262389215,0.64648723,23743.0,23742.0,0.31054143]
[1659262389436,0.64648723,23743.0,23742.0,0.01054143]
[1659262390116,0.49848723,23743.0,23742.0,0.00254143]
[1659262390961,0.49848723,23743.0,23742.0,0.07654143]
[1659262391422,0.49848723,23743.0,23742.0,0.00254143]
[1659262392962,0.88135123,23743.0,23742.0,0.00254143]
[1659262393198,0.57748723,23743.0,23742.0,0.00254143]
[1659262393308,0.88135123,23743.0,23742.0,0.00254143]
[1659262393523,0.57748723,23743.0,23742.0,0.00254143]
[1659262394169,0.49848723,23743.0,23742.0,0.00254143]
[1659262394849,0.49848723,23743.0,23742.0,0.08054143]
[1659262395302,0.49848723,23743.0,23742.0,0.38054143]
[1659262395523,0.49848723,23743.0,23742.0,0.08054143]
[1659262396234,0.49848723,23743.0,23742.0,0.04849143]
[1659262396901,0.49848723,23743.0,23742.0,0.12549143]
[1659262398194,0.49848723,23743.0,23742.0,0.04849143]
[1659262398410,0.49848723,23743.0,23742.0,0.35235543]
[1659262398623,0.49848723,23743.0,23742.0,0.65235543]
[1659262398843,0.54548723,23743.0,23742.0,0.65235543]
[1659262399072,0.54548723,23743.0,23742.0,0.65640543]
[1659262400678,0.49848723,23743.0,23742.0,0.65640543]
[1659262400887,0.54848723,23743.0,23742.0,0.65640543]
[1659262401765,0.54848723,23743.0,23742.0,0.60640543]
[1659262402002,0.54848723,23743.0,23742.0,0.65640543]
[1659262402214,0.49848723,23743.0,23742.0,0.65640543]
[1659262402868,0.49848723,23743.0,23742.0,0.73340543]
[1659262403518,0.49848723,23743.0,23742.0,0.42954143]
[1659262403821,0.49848723,23743.0,23742.0,0.73340543]
[1659262404025,0.49848723,23743.0,23742.0,0.42954143]
[1659262404225,0.49848723,23743.0,23742.0,0.35254143]
[1659262404438,0.49848723,23743.0,23742.0,0.65640543]
[1659262404840,0.49840125,23743.0,23742.0,0.43054143]
[1659262405078,0.49840125,23743.0,23742.0,0.43440543]
[1659262405293,0.49840125,23743.0,23742.0,0.43054143]
[1659262405506,0.49840125,23743.0,23742.0,0.38054143]
[1659262405756,0.49840125,23743.0,23742.0,0.43054143]
[1659262405976,0.49840125,23743.0,23742.0,0.43278815]
[1659262406191,0.49840125,23743.0,23742.0,0.30478815]
[1659262406435,0.49840125,23743.0,23742.0,0.00478815]
[1659262406906,0.49840125,23743.0,23742.0,0.12978815]
[1659262407333,0.49840125,23743.0,23742.0,0.07978815]
[1659262407784,0.49840125,23743.0,23742.0,1.14090948]
[1659262408000,0.46836902,23743.0,23742.0,1.47252948]
[1659262408224,0.0022012,23744.0,23742.0,1.53517296]
[1659262408474,0.002,23747.0,23746.0,0.07359433]
[1659262408686,0.002,23747.0,23746.0,1.41820176]
[1659262408954,0.0032,23748.0,23747.0,0.42745833]
[1659262408955,1e-08,23748.0,23747.0,0.42745833]
[1659262409159,1e-08,23748.0,23747.0,1.18471566]
[1659262409386,1e-08,23748.0,23747.0,1.48471566]
[1659262409648,1e-08,23748.0,23747.0,1.51632566]
[1659262409853,1e-08,23748.0,23747.0,1.48471566]
[1659262410494,1e-08,23748.0,23747.0,1.18471566]
[1659262410931,1e-08,23748.0,23747.0,1.22771566]
[1659262411154,1e-08,23748.0,23747.0,0.82771566]
[1659262411395,1e-08,23748.0,23747.0,0.75412133]
[1659262411834,1e-08,23748.0,23747.0,0.7563636]
[1659262412070,0.00142642,23753.0,23748.0,0.07359433]
[1659262412302,0.00142642,23753.0,23749.0,0.514279]
[1659262412522,6.327e-05,23751.0,23750.0,0.3010481]
[1659262412732,6.327e-05,23751.0,23750.0,0.6049121]
[1659262413189,0.00142642,23753.0,23750.0,0.6049121]
[1659262413427,0.00142642,23753.0,23750.0,0.3010481]
[1659262413649,0.00142642,23753.0,23750.0,0.0010481]
[1659262413862,0.00148969,23753.0,23750.0,0.0010481]
[1659262414784,0.00142642,23753.0,23750.0,0.0010481]
[1659262415003,0.00142642,23753.0,23750.0,0.00328074]
[1659262415234,0.00148969,23753.0,23751.0,0.05]
[1659262415472,0.00148969,23753.0,23752.0,0.07359433]
[1659262415965,0.00264668,23753.0,23752.0,0.07359433]
[1659262416195,0.00258341,23753.0,23750.0,0.40848474]
[1659262417023,1.55967833,23760.0,23755.0,0.07359433]
[1659262417301,0.71112133,23759.0,23755.0,0.07359433]
[1659262417503,0.71112133,23759.0,23752.0,0.6]
[1659262417504,0.5,23757.0,23750.0,0.00223264]
[1659262417734,0.50115699,23753.0,23750.0,0.00223264]
[1659262417922,0.1,23751.0,23750.0,0.00223264]
[1659262418136,0.81112133,23751.0,23750.0,0.00223264]
[1659262418500,0.85259668,23751.0,23750.0,0.00223264]
[1659262418947,0.89859668,23751.0,23744.0,0.01272]
[1659262419149,0.40725733,23750.0,23744.0,0.210476]
[1659262419358,0.40725733,23750.0,23744.0,0.50070913]
[1659262419558,0.40725733,23750.0,23745.0,0.3]
[1659262419963,0.40725733,23751.0,23745.0,0.3]
[1659262420126,0.00117631,23751.0,23745.0,0.770889]
[1659262420344,0.00117631,23751.0,23746.0,0.35]
[1659262420582,0.00117631,23751.0,23747.0,0.31566]
[1659262420802,0.00117631,23751.0,23745.0,0.420889]
[1659262420803,0.44873268,23750.0,23741.0,0.3613]
[1659262421059,0.40725733,23749.0,23741.0,0.76855733]
[1659262421276,0.40725733,23749.0,23742.0,0.3]
[1659262421718,0.40725733,23749.0,23742.0,0.510485]
[1659262422156,0.40725733,23749.0,23742.0,1.02298433]
[1659262422595,0.40725733,23749.0,23743.0,0.3]
[1659262422825,0.41725733,23749.0,23743.0,0.4]
[1659262423038,0.41725733,23749.0,23743.0,0.35]
[1659262424145,0.40725733,23749.0,23744.0,0.3]
[1659262424359,0.40843364,23749.0,23744.0,0.3]
[1659262425036,0.40843364,23749.0,23744.0,0.405232]
[1659262425259,0.00117631,23749.0,23745.0,0.58405333]
[1659262425467,0.00117631,23749.0,23746.0,0.00011126]
[1659262425895,0.08017631,23749.0,23746.0,0.00011126]
[1659262427002,0.07017631,23749.0,23746.0,0.00011126]
[1659262427429,0.07017631,23749.0,23747.0,0.00103096]
[1659262428359,0.00117631,23749.0,23747.0,0.00103096]
[1659262428793,0.00117631,23749.0,23747.0,0.30103096]
[1659262429018,0.07017631,23749.0,23747.0,0.30103096]
[1659262430243,0.00117631,23749.0,23747.0,0.30103096]
[1659262432335,0.07017631,23749.0,23748.0,0.07359433]
[1659262433019,0.10117631,23749.0,23748.0,0.07359433]
[1659262433612,0.00117631,23749.0,23748.0,0.07359433]
[1659262434836,0.03217631,23749.0,23748.0,0.15059433]
[1659262436080,0.03217631,23749.0,23748.0,0.077]
[1659262436275,0.03217631,23749.0,23747.0,0.35103096]
[1659262436276,0.00117631,23749.0,23747.0,0.35103096]
[1659262436504,0.00117631,23749.0,23748.0,0.07359433]
[1659262436867,0.03217631,23749.0,23747.0,0.42803096]
[1659262438222,0.00107579,23749.0,23748.0,0.07359433]
[1659262438668,0.00107579,23749.0,23747.0,0.30103096]
[1659262438921,0.03207579,23749.0,23748.0,0.077]
[1659262440263,0.00107579,23749.0,23747.0,0.30103096]
[1659262440492,0.00107579,23749.0,23747.0,0.35103096]
[1659262440950,0.00107579,23749.0,23747.0,0.42803096]
[1659262440951,0.03607579,23749.0,23747.0,0.42803096]
[1659262442088,0.03607579,23749.0,23747.0,0.077]
[1659262442089,0.07755114,23749.0,23747.0,0.077]
[1659262442309,0.40833312,23749.0,23747.0,0.00011126]
[1659262442535,0.303864,23748.0,23745.0,0.762059]
[1659262442771,0.40833312,23749.0,23745.0,0.210459]
[1659262442995,0.47133312,23749.0,23745.0,0.210459]
[1659262443431,0.47133312,23749.0,23746.0,0.00011126]
[1659262443878,0.47133312,23749.0,23745.0,0.210459]
[1659262444384,0.40833312,23749.0,23746.0,0.00175484]
[1659262444603,0.40833312,23749.0,23746.0,0.0018661]
[1659262445123,0.47133312,23749.0,23746.0,0.0018661]
[1659262445275,0.47133312,23749.0,23745.0,0.210459]
[1659262445487,0.47133312,23749.0,23746.0,0.0018661]
[1659262445963,0.47133312,23749.0,23746.0,0.3018661]
[1659262446189,0.40833312,23749.0,23746.0,0.3018661]
[1659262446914,0.47824656,23749.0,23746.0,0.3018661]
[1659262447146,0.51280847,23749.0,23746.0,0.3]
[1659262447580,0.303864,23748.0,23745.0,0.210459]
[1659262447813,0.51280847,23749.0,23745.0,0.210459]
[1659262448278,0.40833312,23749.0,23746.0,0.00117174]
[1659262449051,0.40833312,23749.0,23746.0,0.30117174]
[1659262449052,0.47133312,23749.0,23746.0,0.30117174]
[1659262449268,0.47133312,23749.0,23746.0,0.65117174]
[1659262449678,0.47133312,23749.0,23746.0,0.40117174]
[1659262449891,0.47133312,23749.0,23746.0,0.35117174]
[1659262450093,0.47133312,23749.0,23746.0,0.00117174]
[1659262450296,0.06407579,23749.0,23748.0,0.07359433]
[1659262450501,0.06407579,23749.0,23747.0,0.05]
[1659262450718,0.06407579,23749.0,23747.0,0.35]
[1659262451124,0.10707579,23749.0,23747.0,0.35]
[1659262451354,0.10707579,23749.0,23748.0,0.07359433]
[1659262451602,0.00107579,23749.0,23747.0,0.35]
[1659262451845,0.00107579,23749.0,23748.0,0.37359433]
[1659262452920,0.06707579,23749.0,23748.0,0.07359433]
[1659262453139,0.06707579,23749.0,23747.0,0.3]
[1659262453755,0.06707579,23749.0,23748.0,0.07359433]
[1659262454166,0.00107579,23749.0,23747.0,0.3]
[1659262454969,0.06707579,23749.0,23747.0,0.3]
[1659262456935,0.07907579,23749.0,23747.0,0.3]
[1659262458188,0.00107579,23749.0,23747.0,0.3]
[1659262458876,0.07907579,23749.0,23747.0,0.3]
[1659262459356,0.00691344,23748.0,23747.0,0.3]
[1659262459577,0.48633312,23749.0,23746.0,0.30085555]
[1659262460219,0.40823345,23749.0,23746.0,0.30085555]
[1659262460978,0.48623345,23749.0,23746.0,0.30085555]
[1659262461188,0.5277088,23749.0,23746.0,0.30085555]
[1659262461794,0.48623345,23749.0,23746.0,0.29787398]
[1659262462228,0.40823345,23749.0,23746.0,0.29787398]
[1659262463088,0.48623345,23749.0,23746.0,0.29787398]
[1659262464098,0.48623345,23749.0,23746.0,0.63814252]
[1659262464405,0.40823345,23749.0,23746.0,0.39787398]
[1659262464636,0.40823345,23749.0,23747.0,0.29023923]
[1659262464866,0.48623345,23749.0,23747.0,0.29023923]
[1659262465091,0.48623345,23749.0,23746.0,0.34787398]
[1659262465527,0.48623345,23749.0,23746.0,0.29787398]
[1659262466217,0.07897612,23749.0,23746.0,0.34787398]
[1659262466794,0.02897612,23749.0,23746.0,0.42487398]
[1659262467581,0.02897612,23749.0,23746.0,0.37487398]
[1659262467802,0.5512,23754.0,23746.0,0.37977701]
[1659262468049,0.71112133,23753.0,23746.0,0.35277701]
[1659262468293,0.54150033,23752.0,23747.0,0.81287623]
[1659262468515,0.40725733,23751.0,23748.0,0.3]
[1659262468744,0.40725733,23751.0,23749.0,0.78654702]